Cogmind - Beta 13 @@@ ROGUE MODE // 2024.07.17 @ 04:05:59 Player: KingStarKing Result: Self-destructed Performance ------------- Evolutions (1) 500 Regions Visited (3) 600 Robots Destroyed (27) 135 Value Destroyed (674) 674 Prototype IDs (3) 60 Alien Tech Used (0) 0 Bonus (6) 6 TOTAL SCORE: 1975 Bonus ------- High Alert Combat Kills 6 Cogmind --------- Core Integrity 282/400 Matter 21/300 Energy 125/125 System Corruption 0% Temperature Cool (0) Movement Walking (120) Location -9/Materials Parts ------- > --- POWER (1) -------- Light Ion Engine > --- PROPULSION (2) --- Improved Aluminum Leg > --- UTILITY (4) ------ Small Storage Unit Sensor Array Signal Interpreter ECM Suite > --- WEAPON (2) ------- Mini Grenade Launcher Mini Grenade Launcher > --- INVENTORY (8) ---- Improved Aluminum Leg Improved Aluminum Leg Improved Heat Sink Utility Shielding Shotgun Light Cannon Improved Light Cannon Peak State ------------ > --- POWER ------------ Light Nuclear Core > --- PROPULSION ------- Improved Aluminum Leg Improved Aluminum Leg > --- UTILITY ---------- Small Storage Unit Sensor Array Signal Interpreter ECM Suite > --- WEAPON ----------- Mini Grenade Launcher Mini Grenade Launcher > --- INVENTORY -------- Light Ion Engine Improved Aluminum Leg Improved Aluminum Leg Improved Heat Sink Utility Shielding Shotgun Light Cannon Improved Light Cannon [Rating: 16] Favorites ----------- Power Ion Engine Engine Ion Engine Power Core Light Nuclear Core Propulsion Aluminum Leg Treads Light Treads Leg Aluminum Leg Utility Small Storage Unit Device Sensor Array Storage Small Storage Unit Processor Signal Interpreter Weapon Mini Grenade Launcher Ballistic Gun Shotgun Ballistic Cannon Light Cannon Launcher Mini Grenade Launcher Slashing Weapon Mining Claw Build | -11 -10 -10 -9 ------- Run | Yrd Mat Min Mat Slots Evolved 2 | . . . 2 Power . | . . . . Propulsion . | . . . . Utility 2 | . . . 2 Weapon . | . . . . Parts Attached 30 | 6 10 3 11 Power 3 | 1 . 1 1 Engine 2 | 1 . . 1 Core 1 | . . 1 . Reactor . | . . . . Propulsion 13 | 2 4 1 6 Treads 2 | . 2 . . Leg 11 | 2 2 1 6 Wheel . | . . . . Hover . | . . . . Flight . | . . . . Utility 5 | 1 2 . 2 Device 3 | . 2 . 1 Storage 1 | 1 . . . Processor 1 | . . . 1 Hackware . | . . . . Protection . | . . . . Artifact . | . . . . Weapon 9 | 2 4 1 2 Energy Gun . | . . . . Energy Cannon . | . . . . Ballistic Gun 3 | 2 1 . . Ballistic Cannon 2 | . 1 1 . Launcher 3 | . 1 . 2 Special Weapon . | . . . . Impact Weapon . | . . . . Slashing Weapon 1 | . 1 . . Piercing Weapon . | . . . . Special Melee Weapon . | . . . . Unidentified Prototypes . | . . . . Parts Lost 2 | . . . 2 Power 1 | . . . 1 Propulsion 1 | . . . 1 Utility . | . . . . Weapon . | . . . . Highest Loss Streak 1 | . . . 1 To Critical Strikes . | . . . . Average Slot Usage (%) 98 | . 97 100 99 Engine 8 | . 14 3 1 Core 4 | . . 10 9 Treads 5 | . 10 . . Leg 20 | . 17 28 21 Device 14 | . 11 14 22 Storage 13 | . 14 14 11 Processor 3 | . . . 11 Ballistic Gun 11 | . 16 14 1 Ballistic Cannon 6 | . 10 2 1 Launcher 6 | . . . 19 Slashing Weapon 2 | . . 11 . Naked Turns . | . . . . Heaviest Build 19 | 14 17 17 19 Greatest Support 40 | 20 40 20 26 Greatest Overweight (x) . | . . . . Average Overweight (x) . | . . . . Largest Inventory Capacity 8 | 8 8 8 8 Average Capacity 7 | 7 8 8 8 Most Carried 8 | 4 8 8 8 Average Carried 6 | 2 7 7 6 Final Capacity 8 | 8 8 8 8 Final Carried 8 | 4 8 7 7 Class Distribution -------------------- 100% | Mutant Dominant Class ---------------- Mutant | -10/Materials Mutant | -10/Mines Mutant | -9/Materials Resources | -11 -10 -10 -9 ----------- Run | Yrd Mat Min Mat Matter Collected 622 | 230 193 123 76 Remotely . | . . . . Salvage Created 547 | . 186 166 195 Parts 42 | . 16 7 19 Haulers Intercepted 1 | . 1 . . Recyclers Shooed . | . . . . Parts Field Recycled . | . . . . Retrieved Matter . | . . . . Parts Self-Destructed . | . . . . Prevented . | . . . . Kills | -11 -10 -10 -9 ------- Run | Yrd Mat Min Mat Combat Hostiles Destroyed 21 | . 5 4 12 Melee 1 | . . 1 . Guns 7 | . 4 3 . AOE 13 | . 1 . 12 Classes Destroyed 7 | . 5 . 2 Worker 3 | . 1 . 2 Builder 2 | . 2 . . Hauler 1 | . 1 . . Swarmer 8 | . 3 . 5 Grunt 10 | . 2 4 4 Duelist 1 | . . . 1 Sentry 2 | . . . 2 Best Kill Streak 4 | . 4 2 4 Combat Bots Only 3 | . 3 2 3 Max Kills in Single Turn 3 | . 2 1 3 Gunslinging . | . . . . Exploded 2 | . 1 . 2 Melee 1 | . . 1 . Uniques/NPCs Destroyed . | . . . . Combat | -11 -10 -10 -9 -------- Run | Yrd Mat Min Mat Hostile Shots Fired 80 | . 19 38 23 Missed 31 | . 7 14 10 Damage Taken 925 | . 139 350 436 Core 259 | . 54 87 118 Absorbed by Shields . | . . . . Regen/Repaired (Parts) 22 | . 22 . . Core Remaining (%) 71 | 100 . 43 . Volleys Fired 38 | . 10 15 13 Largest 2 | . 2 1 2 Hottest 60 | . 55 23 60 Shots Fired 61 | . 20 15 26 Gun 25 | . 10 15 . Cannon 4 | . 4 . . Launcher 32 | . 6 . 26 Special . | . . . . Kinetic 29 | . 14 15 . Thermal . | . . . . Explosive 32 | . 6 . 26 Electromagnetic . | . . . . Robot Hit Streak 8 | . 7 7 8 Robot Miss Streak 2 | . 2 1 1 Penetration Max . | . . . . Secondary Targets . | . . . . Shots Hit Robots 39 | . 10 21 8 Core Hits 49 | . 14 11 24 Critical Kills . | . . . . Critical Parts Destroyed . | . . . . Critical Strikes . | . . . . Melee Attacks 13 | . 2 11 . Impact . | . . . . Slashing 13 | . 2 11 . Piercing . | . . . . Sneak Attacks 2 | . 2 . . Combat Hostiles . | . . . . Follow-up Attacks . | . . . . Damage Inflicted 2032 | . 413 390 1229 Guns 350 | . 105 245 . Cannons 16 | . 16 . . Explosions 1417 | . 197 . 1220 Melee 237 | . 95 142 . Ramming 12 | . . 3 9 Kinetic 366 | . 121 245 . Thermal . | . . . . Explosive 1417 | . 197 . 1220 Electromagnetic . | . . . . Impact . | . . . . Slashing 237 | . 95 142 . Piercing . | . . . . Highest Corruption . | . . . . Average Corruption . | . . . . Corruption Purged . | . . . . Corruption Blocked . | . . . . Overload Shots . | . . . . Overflow Damage 45 | . . . 45 Projectiles . | . . . . Explosions 45 | . . . 45 Melee . | . . . . Knockbacks 2 | . 1 . 1 Impact 1 | . . . 1 Kinetic 1 | . 1 . . Secondary . | . . . . Self-Inflicted Damage 289 | . . . 289 Shots 10 | . . . 10 Rammed . | . . . . Targets Rammed 4 | . . 1 3 Kicked 4 | . . 1 3 Crushed . | . . . . Highest Temperature 6 | . 2 6 6 Average Temperature 3 | . 2 2 4 Received Heat Transfer 255 | . 18 198 39 Siege Activations . | . . . . Robots Corrupted . | . . . . Combat Hostiles . | . . . . Parts Fried . | . . . . Impact Corruptions . | . . . . Robots Melted . | . . . . Combat Hostiles . | . . . . Parts Melted . | . . . . Heat Transferred . | . . . . Parts Sabotaged . | . . . . Parts Stolen . | . . . . Parts Stripped . | . . . . Power Chain Reactions . | . . . . Alert | -11 -10 -10 -9 ------- Run | Yrd Mat Min Mat Peak Influence 490 | . 174 110 490 Initial 42 | . . 10 42 Average 105 | . 43 62 260 Maximum Alert Level 2 | . . . 2 Low Security (%) 85 | 100 100 100 46 Level 1 6 | . . . 24 Level 2 8 | . . . 29 Level 3 . | . . . . Level 4 . | . . . . Level 5 . | . . . . High Security . | . . . . Max Security . | . . . . Squads Dispatched 1 | . . . 1 Investigation . | . . . . Extermination . | . . . . Reinforcement 1 | . . . 1 Assault . | . . . . Garrison . | . . . . Intercept . | . . . . Searches Triggered . | . . . . Construction Impeded . | . . . . Haulers Reinforced . | . . . . Active Scanning Responses . | . . . . Cargo Convoy Interrupts . | . . . . Stealth | -11 -10 -10 -9 --------- Run | Yrd Mat Min Mat Distress Signals 3 | . 1 . 2 Communications Jammed . | . . . . Distress Signals . | . . . . Times Spotted 37 | . 15 4 18 Peak Tracking Total 5 | . 4 2 5 Tactical Retreats 1 | . . . 1 Traps | -11 -10 -10 -9 ------- Run | Yrd Mat Min Mat Traps Triggered 1 | . 1 . . Indirectly . | . . . . Trap Hack Attempts . | . . . . Triggered . | . . . . Disarmed . | . . . . Reprogrammed . | . . . . Reused . | . . . . Traps Extracted . | . . . . Installed . | . . . . Triggered . | . . . . Machines | -11 -10 -10 -9 ---------- Run | Yrd Mat Min Mat Machines Disabled 5 | . . . 5 Max in Single Turn 1 | . . . 1 Machines Repaired . | . . . . Machines Dismantled . | . . . . Machines Sabotaged . | . . . . Overloaded Fab Kills . | . . . . Hacking | -11 -10 -10 -9 --------- Run | Yrd Mat Min Mat Machines Accessed 5 | . 4 . 1 Terminals 3 | . 3 . . Fabricators . | . . . . Repair Stations 1 | . 1 . . Recycling Units 1 | . . . 1 Scanalyzers . | . . . . Garrison Access . | . . . . Total Hacks 15 | . 13 . 2 Successful 11 | . 10 . 1 Failed 4 | . 3 . 1 Catastrophic . | . . . . Database Lockouts . | . . . . Manual . | . . . . Terminals 6 | . 6 . . Fabricators . | . . . . Repair Stations 7 | . 7 . . Recycling Units 2 | . . . 2 Scanalyzers . | . . . . Garrison Access . | . . . . Terminal Hacks 6 | . 6 . . Prototype ID Bank 2 | . 2 . . Locate Traps 1 | . 1 . . Hauler Manifests 1 | . 1 . . Zone Layout 2 | . 2 . . Fabricator Hacks . | . . . . Repair Station Hacks 4 | . 4 . . Scan Component 3 | . 3 . . Repair 1 | . 1 . . Recycling Unit Hacks 1 | . . . 1 Report Inventory 1 | . . . 1 Scanalyzer . | . . . . Garrison Access Hacks . | . . . . Unauthorized Hacks . | . . . . Terminals . | . . . . Fabricators . | . . . . Repair Stations . | . . . . Recycling Units . | . . . . Scanalyzers . | . . . . Garrison Access . | . . . . Data Cores Recovered . | . . . . Used . | . . . . Hacking Detections 2 | . 2 . . Full Trace Events 1 | . 1 . . Feedback Events . | . . . . Feedback Blocked . | . . . . Robot Schematics Acquired . | . . . . Robots Built . | . . . . Authchips . | . . . . Time . | . . . . Total Robot Build Rating . | . . . . Part Schematics Acquired . | . . . . Parts Built . | . . . . Authchips . | . . . . Time . | . . . . Total Part Build Rating . | . . . . Parts Repaired 1 | . 1 . . Time 36 | . 36 . . Parts Recycled . | . . . . Recycled Matter . | . . . . Retrieved Matter . | . . . . Retrieved Components . | . . . . Parts Scanalyzed . | . . . . Part Schematics Acquired . | . . . . Parts Damaged . | . . . . Bothacking | -11 -10 -10 -9 ------------ Run | Yrd Mat Min Mat Used RIF Installer . | . . . . Robots Hacked . | . . . . Non-combat . | . . . . Combat . | . . . . Robot Hacks Applied . | . . . . Relay Couplers Released . | . . . . Fabnet Peak Effective % . | . . . . Robots Rewired . | . . . . Allies Hacked . | . . . . Hacks Repelled . | . . . . Allies | -11 -10 -10 -9 -------- Run | Yrd Mat Min Mat Total Allies . | . . . . Largest Group . | . . . . Highest-Rated Group . | . . . . Highest-Rated Ally . | . . . . Total Orders . | . . . . Ally Attacks . | . . . . Total Damage . | . . . . Kills . | . . . . Allies Corrupted . | . . . . Allies Melted . | . . . . Intel | -11 -10 -10 -9 ------- Run | Yrd Mat Min Mat Robot Analysis Total . | . . . . Derelict Logs Recovered 2 | . . 2 . Drone Launches . | . . . . Drone Recoveries . | . . . . Exploration | -11 -10 -10 -9 ------------- Run | Yrd Mat Min Mat Turns Passed 1701 | 59 921 251 470 Spaces Moved 1070 | 40 598 103 329 Core 2 | 2 . . . Treads 162 | . 162 . . Legs 906 | 38 436 103 329 Wheels . | . . . . Hover . | . . . . Flight . | . . . . Fastest Speed 50 | 50 120 120 120 Average Speed 125 | 116 130 120 120 Slowest Speed 160 | 120 160 120 120 Overloaded Moves . | . . . . Propulsion Burnouts . | . . . . Robots Hopped . | . . . . Cave-ins Triggered . | . . . . Exploration Rate (%) 37 | 4 90 20 36 Regions Visited 3 Branch Regions 1 Pre-discovered Areas 1 | . . 1 . Known Exits Taken . | . . . . Unknown Exits Taken 3 | 1 1 1 . Scrap Searched 1 | . . 1 . Spaces Dug 43 | . 9 . 34 Terrain Destroyed 231 | . 39 . 192 Melee . | . . . . Projectile . | . . . . AOE 231 | . 39 . 192 Terrain Rammed . | . . . . Walls Destroyed . | . . . . Machines Disabled . | . . . . Actions | -11 -10 -10 -9 --------- Run | Yrd Mat Min Mat Total 1337 | 49 714 195 379 Wait 146 | . 75 56 15 Move 1067 | 39 597 102 329 Hop . | . . . . Pick Up 20 | 4 11 2 3 Fast Attach 9 | 6 2 1 . Attach 5 | . 1 1 3 Detach 1 | . 1 . . Swap 16 | . 7 1 8 Drop 18 | . 8 5 5 Fire 38 | . 10 15 13 Melee 13 | . 2 11 . Ram . | . . . . Kick 4 | . . 1 3 Crush . | . . . . Escape Stasis . | . . . . Rewire . | . . . . Trap . | . . . . Miscellaneous . | . . . . Route ------- -11/Scrapyard -10/Materials (discovered 4 exits: *Mat x3 / [*Min]) -10/Mines (discovered 2 exits: *Mat x2) -9/Materials (discovered 1 exit: [*Min]) History --------- Turn | Location | Event 13 | -11/Scrapyard | Discovered new exit (range 16) 60 | -11/Scrapyard | Entered Materials 181 | -10/Materials | Discovered new exit (range 10) 305 | -10/Materials | Discovered new exit (range 16) 316 | -10/Materials | Build established: Mutant 440 | -10/Materials | Discovered new exit (range 13) 541 | -10/Materials | Repaired Broken Aluminum Leg 757 | -10/Materials | Discovered new exit (range 15) 981 | -10/Materials | Entered Mines 999 | -10/Mines | Learned location of Storage (-8) 1002 | -10/Mines | Learned Materials non-interactive machine intel 1069 | -10/Mines | Discovered new exit (range 6) 1119 | -10/Mines | Discovered new exit (range 5) 1175 | -10/Mines | Core integrity fell below 50% 1232 | -10/Mines | Entered Materials 1232 | -9/Materials | Evolved 2 slots: Utility x2 1233 | -9/Materials | Loaded intel: 36 non-interactive machine locations 1556 | -9/Materials | Discovered new exit (range 15) 1702 | -9/Materials | Self-destructed Last Messages --------------- 01618_ Kicked K-01 Serf. 01619_ R-06 Scavenger collects Aluminum Leg. 01621_ Kicked M-13 Machinist. 01621_ M-13 Machinist knocked back. 01630_ Kicked U-05 Engineer out of the way. 01651_ Lgt. Nuclear Core destroyed. 01652_ Y-45 Defender destroyed. 01654_ The unstable cave ceiling collapses. 01681_ Terminal disabled. 01687_ Y-45 Defender destroyed. 01687_ Destroyed Lgt. Ion Engine. 01688_ The unstable cave ceiling collapses. 01690_ Matter Filter disabled. 01690_ S-10 Pest destroyed. 01692_ The unstable cave ceiling collapses. 01693_ K-01 Serf collects debris. 01696_ Imp. Aluminum Leg destroyed. 01697_ K-01 Serf collects debris. 01699_ U-05 Engineer lays Concrete. 01700_ U-05 Engineer lays Concrete. Map ----- +----------------------------------------------------+ | #### = #### ## ### ##### #??????????????? | | ## # = # ## #?# #???# #??????????????? | | # # """#### #?# #???# #??????????????? | | #### "S S"#??# #?# #???# #??????????????? | | + """ ####??# #?# #???# #??????????????? | | #### "" #?????# #?# #???# #??????????????? | | # # ! #?#???# #?# #???# #??????????????? | | # ########## # ?#####?# #???##+##??????????????? | | ### ????# ####### #????? ????????????????? | | ?+ ??## #[[[[ ! # #?? ??"""??????????????? | | #?# # =%[[ # #?? ? """??????????????? | | ??######### [[ "Y" # #?? ? """??????????????? | | ??????????# # """ + #?? ????????????????? | | ??????????? # #######u#?? """??????????????? | | ??????????????###??????# ?? """??????????????? | | ??????????????????????## #? ? """??????????????? | | ??????????????????????# # ? ????????????????? | | ??????????????????????# ## #########????????? | | ??????????????????????# # ## ????????? | | ??????????????????????# """????????? | | ??????????????????????# # """????????? | | ???????????????????????# %[ "" ???????? | | ???????????????????????# """ #??????? | | ???????????????????????# # * " #??????? | | ????????????????????????# #??????? | | ??????????????????????###@# % #??????? | | ??????????????????????# ####### +#####??????? | | ???"""""""????????????# ! #???????????????????? | | ???"""""""????????????# #???????????????????? | | ???"""""""????????????# +???????????????????? | | ???"""""""????????????# #???????????????????? | | ???"""""""????????????# [#???????????????????? | | ??????????????????????########??????x????????????? | | ????????????????????????????????????x????????????? | | ?????????????????????????????????????????????????? | | ?????????????????????????????????????????????????? | | ?????????????????????????????????????????????????? | | ???????????????????????????"""???????????????????? | | ???????????????????????????"""???????????????????? | | ???????????????????????????"""???????????????????? | | ?????????????????????????????????????????????????? | | ?????????????????????????????????????????????????? | | ?????????????????????????????????????????????????? | | ?????????????????????????????????????????????????? | | ?????????????????????????????????????????????????? | | ??????????????????????????????????????????????"""? | | ??????????????????????????????????????????????"""? | | ??????????????????????????????????????????????"""? | | ?????????????????????????????????????????????????? | | ?????????????????????????????????????????????????? | +----------------------------------------------------+ Best States ------------- Heat Dissipation 39 Energy Generation 14 Energy Capacity 250 Matter Stores 300 Matter Capacity 300 Sight Range 16 Robot Scan Range 14 Terrain Scan Density 10 ECM Strength 1 Evasion (%) 55 Recoil Reduction 2 Item Schematics ----------------- None Robot Schematics ------------------ None Fabricated ------------ Nothing Alien Tech Used ----------------- None Achievements -------------- None Challenges ------------ None Game ------ Seed GravitonFlakShotgun Manual? 0 Play Time 00:29:00 Cumulative 18.1 hours Start 2024.07.17 @ 03:20:59 End 2024.07.17 @ 04:05:59 Sessions 3 Manual Loads 0 Difficulty Rogue Special Mode None Game No. 18 Rogue 18 Adventurer 0 Explorer 0 Win Type - Total 0 Types 0/0/0/0/0/0/0/0/0 Lore% 15 Gallery% 19 Achievement% 16 Wizard Run 0 Options --------- Layout 0 ASCII 0 Keyboard 1 Movement Numpad Keybinds 0 Fullscreen 2 Font 18/Smallcaps Map View 38x25 Zoom Use 73% Tactical HUD 1 Map Filters NONE Filters NONE Steam 1 RUN: 278df31d-1237-4cd4-8589-f3314d8a9b0e